[Event "84th Georgian Championship 2025"]
[Site "Tbilisi"]
[Date "2025.02.06"]
[Round "4.2"]
[White "Tutisani, Noe"]
[Black "Quparadze, Giga"]
[Result "1/2-1/2"]
[Annotator "TA"]
[ECO "B45"]
[WhiteElo "2439"]
[BlackElo "2537"]
[PlyCount "57"]
[EventDate "2025.02.03"]
[EventType "tourn"]
[EventCountry "GEO"]
[SourceTitle "playchess.com"]
[Source "ChessBase"]
[SourceQuality "1"]
[TimeControl "40/5400+30:1800+30"]

{[%evp 23,57,17,34,1,17,16,24,0,7,6,11,10,33,42,37,37,57,0,0,0,19,0,8,9,53,20,39,16,18,25,52,0,0,0,0,0]} 1. e4 {[%emt 0:04:35]} c5 {[%emt 0:00:05]} 2. Nf3 {[%emt 0:00:05][%cal Bg1f3,Bf3d4,Bd4b5][%mdl 32]} e6 {[%emt 0:00:03]} 3. d4 {[%emt 0:00:06]} cxd4 {[%emt 0:00:05]} 4. Nxd4 {[%emt 0:00:04]} Nf6 {[%emt 0:00:04]} 5. Nc3 {[%emt 0:00:07]} Nc6 {[%emt 0:00:04]} 6. Ndb5 {[%emt 0:00:08]} Bb4 {[%emt 0:00:13]} 7. a3 {[%emt 0:00:04]} Bxc3+ {[%emt 0:00:05]} 8. Nxc3 {[%emt 0:00:03]} d5 {[%emt 0:00:08]} 9. Bd3 {[%emt 0:00:04]} dxe4 {[%emt 0:00:08]} 10. Nxe4 {[%emt 0:00:04]} Nxe4 {[%emt 0:00:05]} 11. Bxe4 {[%emt 0:00:04]} Qxd1+ {[%emt 0:00:05]} 12. Kxd1 {[%emt 0:00:04]} Bd7 {[%emt 0:00:05][%cal Bc8d7,Bd7c6,Bc6e4][%mdl 32]} 13. a4 {[%emt 0:00:12]} O-O-O {[%emt 0:00:17]} 14. Be3 {[%emt 0:01:15]} Nd4 {[%emt 0:00:24]} 15. Bxd4 {[%emt 0:15:24] A strong pair of Bishops. White has an edge.} Bc6 {[%emt 0:00:10] [#]} 16. c3 $1 {[%emt 0:00:03]} Bxe4 {[%emt 0:01:43]} 17. Ke2 {[%emt 0:00:13][%csl LRa7,LRg7]} Bxg2 {[%emt 0:01:10]} 18. Rhg1 {[%emt 0:00:09]} e5 {[%emt 0:01:37]} 19. Bxa7 {[%emt 0:08:12]} Be4 {[%emt 0:00:06]} 20. Bb6 {[%emt 0:06:10]} (20. Rxg7 $14 Bd3+ 21. Ke3) 20... Rd6 $11 {[%emt 0:00:08]} 21. a5 {[%emt 0:00:11]} Bg6 {[%emt 0:00:07]} 22. Ra4 {[%emt 0:03:05]} Kd7 {[%emt 0:00:38]} 23. Rb4 {[%emt 0:00:50]} f5 {[%emt 0:07:57][%cal Bf7f5,Bf5f4][%mdl 32]} 24. f3 {[%emt 0:05:54]} f4 {[%emt 0:00:27]} 25. h4 {[%emt 0:10:59]} Re8 {[%emt 0:03:52]} 26. Ba7 {[%emt 0:00:45]} Kc8 {[%emt 0:00:13]} 27. Rc4+ {[%emt 0:00:24]} ({White should try} 27. Ke1 $1 $14) 27... Kd7 {[%emt 0:01:15] [#] Hoping for ...Bd3+.} 28. Rb4 {[%emt 0:00:04]} Kc8 {[%emt 0:00:35]} 29. Rc4+ {[%emt 0:00:03] Weighted Error Value: White=0.16 (very precise) /Black=0.12 (very precise) .  Mistake:       	White=2     	---        Inaccurate:     	White=1     	Black=2      OK:         	White=8     	Black=6      Best:        	---       	Black=2} 1/2-1/2

[Event "84th Georgian Championship 2025"]
[Site "Tbilisi"]
[Date "2025.02.06"]
[Round "4.3"]
[White "Kacharava, Nikolozi"]
[Black "Paichadze, Luka"]
[Result "1/2-1/2"]
[Annotator "TA"]
[ECO "B12"]
[WhiteElo "2524"]
[BlackElo "2532"]
[PlyCount "72"]
[EventDate "2025.02.03"]
[EventType "tourn"]
[EventCountry "GEO"]
[SourceTitle "playchess.com"]
[Source "ChessBase"]
[SourceQuality "1"]
[TimeControl "40/5400+30:1800+30"]

{[%evp 9,72,0,0,-28,-47,-14,-30,-16,-6,-17,0,-8,-5,-48,-32,-39,-18,-9,0,0,23,0,45,0,20,0,0,0,57,3,8,8,10,14,8,8,8,11,11,11,6,0,0,0,0,-13,-9,-6,-6,-8,-1,-4,-1,-8,0,-5,-5,-5,0,0,0,0,0,0,0]} 1. e4 {[%emt 0:02:16]} c6 {[%emt 0:00:12]} 2. d4 {[%emt 0:00:15]} d5 {[%emt 0:00:05]} 3. e5 {[%emt 0:00:13]} Bf5 {[%emt 0:00:06]} 4. g4 {[%emt 0:00:15]} Be4 {[%emt 0:00:49]} 5. f3 {[%emt 0:00:18]} Bg6 {[%emt 0:00:02]} 6. e6 {[%emt 0:00:17] B12: Caro-Kann: Advance Variation.} fxe6 {[%emt 0:01:22]} 7. h4 {[%emt 0:00:32] [#]} c5 $1 {[%emt 0:09:36]} 8. h5 {[%emt 0:02:35] Black has an edge.} Bf7 {[%emt 0:00:04]} 9. f4 {[%emt 0:08:22]} Nc6 {[%emt 0:02:54]} 10. Nf3 {[%emt 0:02:35]} cxd4 {[%emt 0:04:54]} 11. Ne5 {[%emt 0:10:29]} Qd6 $146 {[%emt 0:13:35]} (11... Nxe5 12. fxe5 Qa5+ 13. Bd2 Qb6 14. Na3 a6 15. Qf3 Nf6 16. exf6 exf6 17. O-O-O Be7 {0-1 Bravo Mallco,K (2074)-Mou,I (2257) American Continental (Women) 15th 2024 (2)}) 12. Qe2 {[%emt 0:02:34]} Nf6 {[%emt 0:00:27]} (12... Nh6 $5) 13. Nd2 {[%emt 0:01:55][%cal Bb1d2,Bd2f3,Bf3e5][%mdl 32]} Rc8 {[%emt 0:08:31][%cal Od4d3]} 14. Ndf3 {[%emt 0:23:42] White sacrificed a pawn} Ne4 {[%emt 0:11:02]} 15. Qb5 {[%emt 0:03:26]} Rc7 {[%emt 0:06:13]} 16. a3 {[%emt 0:03:54][%cal Ob5d3]} a6 {[%emt 0:01:40]} 17. Qd3 {[%emt 0:00:38] A sharp opening} Nxe5 {[%emt 0:11:10]} 18. Nxe5 {[%emt 0:01:59]} Qc5 {[%emt 0:00:57]} (18... Qb6 $11) 19. Bd2 {[%emt 0:20:22]} (19. Rh2 $1 $14) 19... g5 {[%emt 0:05:37] ...Bg7 would now be deadly. The position is equal.} 20. hxg6 {[%emt 0:02:31]} (20. fxg5 Bg7 (20... Qxc2 21. Qxc2 Rxc2 22. Bd3 $11) 21. Nxf7 Kxf7 22. g6+ hxg6 23. hxg6+ Kxg6 24. Rxh8 Bxh8 $19) 20... Bg8 {[%emt 0:00:02][%cal Of8g7]} 21. Bg2 {[%emt 0:03:49]} Bg7 {[%emt 0:00:24]} 22. Bxe4 {[%emt 0:00:41]} dxe4 {[%emt 0:00:16]} 23. Qxe4 {[%emt 0:00:02] aiming for 0-0-0.} Qd5 {[%emt 0:02:43]} 24. Qxd5 {[%emt 0:01:19]} exd5 {[%emt 0:00:01]} 25. O-O-O {[%emt 0:03:14]} hxg6 {[%emt 0:00:05]} 26. Rxh8 {[%emt 0:01:56]} (26. Nxg6 Rxh1 27. Rxh1 Bf7 $17) 26... Bxh8 {[%emt 0:00:02]} 27. Ba5 {[%emt 0:00:18] [#]} Bxe5 {[%emt 0:07:41]} 28. fxe5 $11 {[%emt 0:00:04][%mdl 4096] Endgame KRB-KRB. Black is a pawn up.} Rc4 {[%emt 0:00:12][%cal Od4d3]} 29. b3 {[%emt 0:00:30]} Rc5 {[%emt 0:00:05]} 30. Bb6 {[%emt 0:02:31]} Rc3 {[%emt 0:01:01]} 31. Rd3 {[%emt 0:00:13]} Be6 {[%emt 0:01:34]} 32. Rxc3 {[%emt 0:01:21]} dxc3 {[%emt 0:00:06]} 33. g5 {[%emt 0:00:04]} Kd7 {[%emt 0:00:42]} 34. Bd4 $1 {[%emt 0:00:10]} Bg4 {[%emt 0:00:07]} 35. Bxc3 {[%emt 0:00:05]} Ke6 {[%emt 0:00:06]} 36. Bb4 $1 {[%emt 0:00:27]} Kxe5 {[%emt 0:14:07] Weighted Error Value: White=0.10 (very precise) /Black=0.12 (very precise)   Mistake:       	White=1     	Black=1      Inaccurate:     	White=1     	Black=1      OK:         	White=11    	Black=10     Best:        	White=4     	Black=1      Strong:       	White=2     	---} 1/2-1/2

[Event "84th Georgian Championship 2025"]
[Site "Tbilisi"]
[Date "2025.02.06"]
[Round "4.4"]
[White "Petriashvili, Nikoloz"]
[Black "Nigalidze, Gaioz"]
[Result "1/2-1/2"]
[Annotator "TA"]
[ECO "D70"]
[WhiteElo "2450"]
[BlackElo "2378"]
[PlyCount "87"]
[EventDate "2025.02.03"]
[EventType "tourn"]
[EventCountry "GEO"]
[SourceTitle "playchess.com"]
[Source "ChessBase"]
[SourceQuality "1"]
[TimeControl "40/5400+30:1800+30"]

{[%evp 9,87,25,30,22,26,18,28,27,25,22,23,25,30,25,25,24,14,27,19,6,9,14,32,16,12,0,0,0,0,0,11,0,0,0,0,0,-5,-10,-11,-8,0,0,0,0,0,0,0,0,0,-4,-4,-18,0,0,0,0,0,0,0,0,0,0,0,0,0,0,0,0,0,0,0,0,0,0,0,0,0,0,0,0]} 1. d4 {[%emt 0:03:17]} d5 {[%emt 0:00:09]} 2. Nf3 {[%emt 0:00:46]} Nf6 {[%emt 0:00:13][%cal Bg8f6,Bf6e4,Be4d2][%mdl 32]} 3. c4 {[%emt 0:00:08]} c6 {[%emt 0:00:38]} 4. Nbd2 {[%emt 0:03:29]} g6 {[%emt 0:05:13]} 5. e3 {[%emt 0:01:19]} Bg7 {[%emt 0:00:06]} 6. b3 {[%emt 0:00:51] D70: Grünfeld: Unusual White 3rd moves (met by ...d5).} O-O {[%emt 0:08:03][%cal Oc6c5]} 7. Bb2 {[%emt 0:01:34]} Ne4 {[%emt 0:00:06]} 8. Be2 {[%emt 0:01:14] White has an edge.} Qa5 {[%emt 0:07:48]} 9. a3 {[%emt 0:07:06]} Nxd2 $146 {[%emt 0:05:56]} (9... Nc3 10. Bxc3 Qxc3 11. O-O Bf5 12. Nh4 Bd3 13. Rc1 Bxe2 14. Qxe2 Qa5 15. cxd5 cxd5 {½-½ Stahlberg,G-Gershman,J Circulo de Ajedrez International 1939 (10)}) 10. Nxd2 {[%emt 0:02:40]} dxc4 {[%emt 0:01:02]} 11. b4 {[%emt 0:04:38] White sacrificed a pawn} Qd5 {[%emt 0:10:35]} 12. e4 {[%emt 0:02:39]} Qd8 {[%emt 0:18:23]} 13. Nxc4 {[%emt 0:01:02]} Be6 {[%emt 0:02:38]} 14. O-O {[%emt 0:00:59]} Bxc4 {[%emt 0:00:33]} 15. Bxc4 {[%emt 0:00:02]} Nd7 {[%emt 0:00:19]} 16. Qd2 {[%emt 0:06:25]} a5 {[%emt 0:04:45] The position is equal.} 17. Bc3 {[%emt 0:01:21][%cal Rb4a5]} axb4 {[%emt 0:00:38]} 18. axb4 {[%emt 0:00:07]} Rxa1 {[%emt 0:02:54]} 19. Rxa1 {[%emt 0:00:27]} e5 {[%emt 0:02:52]} 20. d5 {[%emt 0:05:36] [#] and dxc6 should not be overlooked} Nb6 {[%emt 0:00:29]} 21. Bb3 {[%emt 0:00:04] This pair of bishops is nice.} cxd5 {[%emt 0:01:02]} 22. Bxd5 {[%emt 0:00:05]} Nxd5 {[%emt 0:01:23]} 23. Qxd5 {[%emt 0:00:02]} Qxd5 {[%emt 0:01:18]} 24. exd5 $11 {[%emt 0:00:02][%mdl 4096] Endgame KRB-KRB} Rd8 {[%emt 0:06:12]} 25. Ra5 {[%emt 0:01:24]} e4 {[%emt 0:08:58]} 26. Bxg7 {[%emt 0:06:39]} Kxg7 {[%emt 0:01:23] KR-KR} 27. Rb5 {[%emt 0:00:09]} Rd7 {[%emt 0:00:16]} 28. g4 {[%emt 0:02:45]} Kf6 {[%emt 0:00:27]} 29. d6 {[%emt 0:00:03]} Ke6 {[%emt 0:00:42]} 30. Kf1 {[%emt 0:05:01]} (30. g5 Kxd6 31. Kf1 Kc6 32. Rc5+) 30... f5 {[%emt 0:06:34]} (30... Rxd6 31. Rxb7 Rd2 32. h4) (30... Kxd6 {simplifies} 31. Ke2 Kc6 32. Rc5+ Kb6) 31. gxf5+ {[%emt 0:00:23]} gxf5 {[%emt 0:00:02]} 32. f3 {[%emt 0:00:24]} exf3 {[%emt 0:01:48]} 33. Kf2 {[%emt 0:00:26]} Rf7 {[%emt 0:00:24]} 34. Kxf3 {[%emt 0:01:28]} Kxd6 {[%emt 0:01:10]} 35. Kf4 {[%emt 0:02:11]} Kc6 {[%emt 0:00:12]} 36. Rc5+ {[%emt 0:00:08]} Kb6 {[%emt 0:00:42]} 37. h4 {[%emt 0:00:08]} Rd7 {[%emt 0:00:31]} 38. Rxf5 {[%emt 0:00:09]} Rd4+ {[%emt 0:00:30]} 39. Kg5 {[%emt 0:00:14]} Rxb4 {[%emt 0:00:34]} 40. Rf6+ {[%emt 0:00:00]} Ka5 {[%emt 0:00:00]} 41. Rh6 {[%emt 0:00:16]} Rb5+ {[%emt 0:02:09]} 42. Kg4 {[%emt 0:00:03]} Rb4+ {[%emt 0:00:06]} 43. Kg5 {[%emt 0:00:01]} Rb5+ {[%emt 0:00:07]} 44. Kg4 {[%emt 0:00:01] A balanced but interesting game.   Weighted Error Value: White=0.03 (flawless) /Black=0.02 (flawless)   OK:         	White=21    	Black=18     Best:        	White=1     	---} 1/2-1/2

[Event "84th Georgian Championship 2025"]
[Site "Tbilisi"]
[Date "2025.02.06"]
[Round "4.5"]
[White "Gagunashvili, Merab"]
[Black "Sanikidze, Tornike"]
[Result "0-1"]
[Annotator "TA"]
[ECO "E60"]
[WhiteElo "2541"]
[BlackElo "2432"]
[PlyCount "190"]
[EventDate "2025.02.03"]
[EventType "tourn"]
[EventCountry "GEO"]
[SourceTitle "playchess.com"]
[Source "ChessBase"]
[SourceQuality "1"]
[TimeControl "40/5400+30:1800+30"]

{[%evp 9,190,18,6,24,19,12,25,27,23,24,10,7,7,9,12,18,14,23,27,36,33,-30,-38,-22,-19,-20,-11,-15,-16,-46,-60,-54,0,-19,-16,-54,0,-59,-50,-58,-66,-56,-56,-43,-55,-53,-56,-46,-58,-58,-47,-55,-33,-53,-58,-82,-82,-82,-82,-79,-72,-77,-48,-112,-112,-112,-112,-112,-112,-112,-52,-52,-52,-52,-52,-195,-195,-195,-103,-195,-195,-195,-195,-195,-195,-195,-195,-195,-195,-195,-195,-195,-195,-195,-195,-195,-195,-195,-195,-195,-195,-195,-195,-188,-188,-439,-478,-412,-414,-386,-352,-328,-312,-319,-310,-1750,-1681,-4366,-4162,-4366,-4366,-4366,-4366,-4366,-4218,-4162,-4149,-4366,-4149,-4137,-4137,-4137,-4137,-29970,-29971,-29973,-29972,-29982,-29982,-29983,-29983,-29983,-29984,-29984,-29979,-29978,0,-29984,-29985,-29985,-29986,-29986,-29987,-29987,-29988,-29988,-29989,-29989,-29990,-29990,-29990,-29990,-29991,-29991,-29990,-29990,-29990,-29991,-29991,-29991,-4141,-29992,-29993,-29993,-29994,-29994,-29995,-29995,-29996,-29996,-29996,-29996,-4153]} 1. d4 {[%emt 0:00:03]} Nf6 {[%emt 0:00:37]} 2. c4 {[%emt 0:00:06]} g6 {[%emt 0:01:03]} 3. g3 {[%emt 0:00:29]} c5 {[%emt 0:02:23]} 4. dxc5 {[%emt 0:03:10]} Na6 {[%emt 0:01:24]} 5. Nc3 {[%emt 0:01:10]} Nxc5 {[%emt 0:00:10]} 6. Bg2 {[%emt 0:01:07] E60: King's Indian: Unusual lines and Fianchetto Variation without Nc3.} Bg7 {[%emt 0:00:06]} 7. Nh3 {[%emt 0:04:01]} d6 {[%emt 0:01:52]} 8. Nf4 {[%emt 0:00:20] White has an edge.} O-O {[%emt 0:00:32]} 9. O-O {[%emt 0:00:25]} Bd7 {[%emt 0:05:17]} 10. h3 {[%emt 0:11:20]} Bc6 {[%emt 0:01:57]} 11. Be3 $146 {[%emt 0:01:58]} (11. Nfd5 Nxd5 12. cxd5 Bd7 13. Be3 Rc8 14. Rc1 a5 15. Qd2 b5 16. Kh2 f5 17. Bd4 Bxd4 18. Qxd4 {1-0 Doshi,M (2332)-Bulgankhan,G (2017) Wch FIDE Online U18 Asia qual rapid 2020 (2)}) 11... Bxg2 {[%emt 0:03:18]} 12. Kxg2 {[%emt 0:00:05]} a6 {[%emt 0:07:10][%cal Ob7b5]} 13. Rc1 {[%emt 0:03:14]} b5 {[%emt 0:04:03]} 14. b4 {[%emt 0:05:47]} Ncd7 {[%emt 0:07:27]} 15. Qb3 {[%emt 0:07:43]} (15. cxb5 $14 axb5 16. Nxb5) 15... bxc4 $11 {[%emt 0:04:23]} 16. Qxc4 {[%emt 0:00:10]} e6 {[%emt 0:00:05]} 17. Nd3 {[%emt 0:05:26]} Qb8 {[%emt 0:02:09]} 18. Qb3 {[%emt 0:10:50]} Rc8 {[%emt 0:03:24]} 19. Na4 {[%emt 0:00:51]} Qb7+ {[%emt 0:04:42]} 20. f3 {[%emt 0:01:56]} e5 {[%emt 0:11:51]} (20... Nd5 $15 21. Bd2 Rcb8) 21. Rxc8+ {[%emt 0:04:20]} Rxc8 {[%emt 0:00:13]} 22. Rc1 {[%emt 0:00:55]} Re8 {[%emt 0:15:01]} (22... Rxc1 $15 23. Bxc1 e4) 23. Nf2 {[%emt 0:07:35]} (23. Nc3 $11) 23... e4 $15 {[%emt 0:00:29]} 24. Rd1 {[%emt 0:11:51]} Qb5 $1 {[%emt 0:04:22]} (24... exf3+ $6 25. exf3 Ne5 26. Bd4 $11) 25. Nc3 {[%emt 0:00:46]} exf3+ {[%emt 0:00:35]} 26. exf3 {[%emt 0:00:05]} Rxe3 {[%emt 0:00:58]} 27. Nxb5 {[%emt 0:00:07]} Rxb3 {[%emt 0:00:04]} 28. axb3 {[%emt 0:00:07]} axb5 {[%emt 0:00:02]} 29. Rxd6 {[%emt 0:00:03]} Bf8 {[%emt 0:00:36]} 30. Ra6 {[%emt 0:02:26]} Bxb4 {[%emt 0:09:10]} 31. Nd3 {[%emt 0:01:41]} Bc3 {[%emt 0:00:04]} 32. b4 {[%emt 0:01:26]} Nd5 {[%emt 0:00:47]} 33. Ra5 {[%emt 0:00:21]} Nxb4 {[%emt 0:00:55]} 34. Nxb4 {[%emt 0:00:11]} Bxb4 {[%emt 0:00:04]} 35. Rxb5 {[%emt 0:00:04]} Bc3 {[%emt 0:00:43]} 36. h4 {[%emt 0:00:54]} ({White should play} 36. g4 $15) 36... h5 $1 $17 {[%emt 0:00:41]} 37. g4 {[%emt 0:03:41] [#]} Nf6 $1 {[%emt 0:00:55]} 38. Kh3 {[%emt 0:01:07]} Kg7 {[%emt 0:01:51]} 39. Rb3 {[%emt 0:01:40]} Nd5 {[%emt 0:06:25]} (39... Bd4 $17 40. Rb5 Be3) 40. gxh5 $15 {[%emt 0:00:00]} gxh5 {[%emt 0:00:00]} 41. Rb5 $1 {[%emt 0:04:39]} Nf6 {[%emt 0:04:31]} 42. Rb3 {[%emt 0:03:24]} (42. f4 $1 $15) 42... Bd2 $19 {[%emt 0:01:10]} 43. Rb2 {[%emt 0:00:29]} Be3 {[%emt 0:00:21]} (43... Bh6 $19 44. Rb5 Kg6) 44. Rb3 {[%emt 0:01:59]} (44. Rb5 $17 {keeps fighting.}) 44... Nd5 {[%emt 0:04:54]} 45. Rb5 {[%emt 0:01:44]} Nf4+ {[%emt 0:00:17]} 46. Kg3 {[%emt 0:00:24]} f6 {[%emt 0:00:01] Prevents Re5.} 47. Rb3 {[%emt 0:02:45]} Ne2+ {[%emt 0:01:13]} 48. Kg2 {[%emt 0:00:11]} Bd4 {[%emt 0:00:07]} 49. Rb5 {[%emt 0:01:01]} Kg6 {[%emt 0:03:52]} 50. Ra5 {[%emt 0:00:16]} Be5 {[%emt 0:01:41]} 51. Ra4 {[%emt 0:00:25]} Kf5 {[%emt 0:00:51]} 52. Kf2 {[%emt 0:00:36]} Nf4 {[%emt 0:01:35]} 53. Kg3 {[%emt 0:00:12]} Ne6+ {[%emt 0:01:58]} 54. Kf2 {[%emt 0:00:30]} Kg6 {[%emt 0:02:39]} 55. Kg2 {[%emt 0:00:42]} Ng7 {[%emt 0:02:01]} 56. Kh3 {[%emt 0:01:14]} Nf5 {[%emt 0:00:12]} 57. Ra2 $2 {[%emt 0:01:48]} (57. Ra8) 57... Nd4 {[%emt 0:00:04]} 58. Kg2 {[%emt 0:00:28] [#]} Kf5 $1 {[%emt 0:00:01]} 59. Ra8 {[%emt 0:00:45]} Kf4 {[%emt 0:01:10]} 60. Ra4 {[%emt 0:03:35]} f5 {[%emt 0:00:36] Threatens to win with ...Bf6.} 61. Ra3 {[%emt 0:01:16]} Nc2 {[%emt 0:01:49]} 62. Rb3 $2 {[%emt 0:00:44]} (62. Ra4+ Ke3 63. Ra6) 62... Bf6 {[%emt 0:01:26]} 63. Kh3 {[%emt 0:00:21]} Bd4 {[%emt 0:07:26]} 64. Rb7 {[%emt 0:05:18]} Ne1 {[%emt 0:00:04]} 65. Rh7 {[%emt 0:00:31]} Nxf3 {[%emt 0:00:06]} 66. Rxh5 {[%emt 0:00:04]} Bf6 {[%emt 0:00:02]} 67. Kg2 {[%emt 0:00:46]} Nxh4+ {[%emt 0:00:06]} 68. Kf2 {[%emt 0:00:30]} Kg4 {[%emt 0:00:27]} 69. Rh6 {[%emt 0:00:13]} Bd4+ {[%emt 0:00:02]} 70. Kf1 {[%emt 0:01:33]} f4 {[%emt 0:00:06] ( -> ...f3)} 71. Ra6 {[%emt 0:00:06]} f3 {[%emt 0:00:22]} 72. Ra3 {[%emt 0:00:51]} Nf5 {[%emt 0:02:34]} 73. Rxf3 {[%emt 0:00:28]} Kxf3 {[%emt 0:00:06]} 74. Ke1 {[%emt 0:00:02]} Ng3 {[%emt 0:01:06]} 75. Kd2 {[%emt 0:00:04]} Ke4 {[%emt 0:00:36]} 76. Kc2 {[%emt 0:00:04]} Nf5 {[%emt 0:00:26]} 77. Kd2 {[%emt 0:00:12]} Ng3 {[%emt 0:03:25]} 78. Kc2 $1 {[%emt 0:00:04]} Kd5 {[%emt 0:00:06]} 79. Kd3 {[%emt 0:00:10]} Kc5 {[%emt 0:00:04]} 80. Kc2 {[%emt 0:00:15]} Kc4 {[%emt 0:00:03]} 81. Kd2 {[%emt 0:00:06]} Bf2 {[%emt 0:00:07]} 82. Kc2 {[%emt 0:00:12]} Be1 {[%emt 0:00:23]} 83. Kd1 {[%emt 0:00:10]} Bb4 {[%emt 0:01:00]} 84. Kc2 {[%emt 0:00:02]} Bc3 {[%emt 0:00:27]} 85. Kd1 {[%emt 0:00:15]} Kd3 {[%emt 0:00:41]} 86. Kc1 {[%emt 0:00:03]} Ne2+ {[%emt 0:00:04]} 87. Kd1 {[%emt 0:00:05]} Nd4 {[%emt 0:00:03]} 88. Kc1 {[%emt 0:00:03]} Ke2 {[%emt 0:00:10]} 89. Kb1 {[%emt 0:00:03]} Kd1 {[%emt 0:01:20]} 90. Ka2 {[%emt 0:00:03]} Bb4 {[%emt 0:00:03] Black mates.} 91. Kb2 {[%emt 0:00:05]} Kd2 {[%emt 0:00:10]} 92. Kb1 {[%emt 0:00:06]} Ba3 {[%emt 0:00:05]} 93. Ka2 {[%emt 0:00:03]} Bc1 {[%emt 0:00:03]} 94. Kb1 {[%emt 0:00:04]} Kd1 {[%emt 0:00:09]} 95. Ka2 {[%emt 0:00:04]} Kc2 {[%emt 0:00:03] Weighted Error Value: White=0.19 (very precise) /Black=0.06 (flawless)   Mistake:       	White=7     	Black=4      Inaccurate:     	White=3     	Black=1      OK:         	White=12    	Black=27     Best:        	White=4     	Black=9      Strong:       	White=1     	Black=4} 0-1

[Event "84th Georgian Championship 2025"]
[Site "Tbilisi"]
[Date "2025.02.07"]
[Round "5.1"]
[White "Pantsulaia, Levan"]
[Black "Petriashvili, Nikoloz"]
[Result "1-0"]
[Annotator "TA"]
[ECO "A07"]
[WhiteElo "2522"]
[BlackElo "2450"]
[PlyCount "61"]
[EventDate "2025.02.03"]
[EventType "tourn"]
[EventCountry "GEO"]
[SourceTitle "playchess.com"]
[Source "ChessBase"]
[SourceQuality "1"]
[TimeControl "40/5400+30:1800+30"]

{[%evp 11,61,-13,0,-46,-31,-46,-30,-47,-49,-48,-44,-43,14,7,13,24,26,16,20,0,0,-19,-9,-18,8,12,4,0,0,0,0,-28,-20,-22,26,28,215,165,195,200,229,216,289,278,306,306,1256,1200,1364,1293,29978,1755]} 1. Nf3 {[%emt 0:00:03]} d5 {[%emt 0:11:14]} 2. g3 {[%emt 0:00:26]} g6 {[%emt 0:00:09]} 3. Bg2 {[%emt 0:01:30]} Bg7 {[%emt 0:00:05]} 4. O-O {[%emt 0:00:06]} e5 {[%emt 0:00:07]} 5. c4 {[%emt 0:04:03]} dxc4 {[%emt 0:00:11]} 6. Qa4+ {[%emt 0:00:42]} Nc6 {[%emt 0:00:06]} 7. Qxc4 {[%emt 0:00:08] A07: Réti Opening: New York and Capablanca Systems.} (7. Nxe5 $1 $11 Bxe5 8. Bxc6+ bxc6 9. Qxc6+ Bd7 10. Qe4) 7... Nge7 $15 {[%emt 0:00:20]} 8. d3 {[%emt 0:00:27]} h6 {[%emt 0:00:13]} 9. a3 {[%emt 0:06:10] Black has an edge.} Be6 {[%emt 0:00:24]} 10. Qc2 {[%emt 0:00:08]} O-O {[%emt 0:01:27]} 11. Nbd2 {[%emt 0:07:41]} Bd5 $146 {[%emt 0:04:02]} (11... a5 $15) (11... a5 12. Rb1 g5 13. h3 Ng6 14. b4 axb4 15. axb4 Ra2 16. Qd1 Bd5 17. b5 Nce7 {0-1 Hjartarson,J (2523)-Lazavik,D (2438) Titled Tuesday intern op 06th Apr blitz 2021 (10)}) 12. e4 $11 {[%emt 0:07:12]} Be6 {[%emt 0:02:25]} 13. b4 {[%emt 0:00:31]} g5 {[%emt 0:13:51]} 14. Nb3 {[%emt 0:06:23]} a6 {[%emt 0:03:42]} 15. Be3 {[%emt 0:02:32]} b6 {[%emt 0:03:13]} 16. h4 {[%emt 0:02:59]} g4 {[%emt 0:01:10]} 17. Nfd2 {[%emt 0:00:29]} a5 {[%emt 0:03:25]} 18. bxa5 {[%emt 0:09:51]} Nxa5 {[%emt 0:00:19]} 19. a4 {[%emt 0:01:54]} Nec6 {[%emt 0:01:15]} 20. Nxa5 {[%emt 0:01:15]} Nxa5 {[%emt 0:01:11]} 21. Rfb1 {[%emt 0:13:37]} Qd7 {[%emt 0:07:28]} 22. Bf1 {[%emt 0:01:23]} Rad8 {[%emt 0:00:50]} (22... h5 {is superior.}) 23. Nc4 {[%emt 0:07:38] and Nxa5 would now be decisive} f5 $2 {[%emt 0:01:42] [#] A mistake that costs the game.} (23... Ra8 $11) 24. Nxa5 $18 {[%emt 0:02:47]} bxa5 {[%emt 0:02:07]} 25. exf5 {[%emt 0:03:14]} Bxf5 {[%emt 0:00:09]} 26. Ra3 {[%emt 0:01:10]} Rfe8 {[%emt 0:01:07]} 27. Rc3 {[%emt 0:03:05]} Re7 {[%emt 0:00:39]} 28. Rb7 {[%emt 0:00:56][%cal Rc3c7]} e4 $2 {[%emt 0:01:53] [#]} (28... Rc8 29. Rc5 Rf7) 29. Rcxc7 {[%emt 0:01:47]} exd3 {[%emt 0:01:00]} 30. Rxd7 {[%emt 0:00:36]} dxc2 {[%emt 0:00:05]} 31. Rxd8+ {[%emt 0:00:14] Weighted Error Value: White=0.06 (flawless) /Black=0.84  Loses game:     	---       	Black=1      Mistake:       	---       	Black=3      Inaccurate:     	White=1     	Black=2      OK:         	White=9     	Black=9      Best:        	White=5     	---} (31. Bc4+ $142 Kh7 32. Rxe7 Kh8 33. Rxg7 Rd1+ 34. Kh2 Rh1+ 35. Kxh1 c1=Q+ 36. Bxc1 Be4+ 37. Kh2 Bxb7 38. Rxb7 h5 39. Bb2#) 1-0